bitfinex/quotes_SOLUSD_20250506
["timestamp","ask_amount","ask_price","bid_price","bid_amount"]
[1746554530835,20.30569984,143.94,143.91,13.82]
[1746554531030,20.30569984,143.92,143.91,13.82]
[1746554531639,20.30569984,143.93,143.89,20.30569984]
[1746554531871,20.30569984,143.93,143.9,20.76904045]
[1746554532147,20.30569984,143.94,143.9,41.07474029]
[1746554533651,20.30569984,143.93,143.9,20.76904045]
[1746554534836,20.30569984,143.94,143.9,41.07474029]
[1746554538753,20.30569984,143.93,143.9,20.76904045]
[1746554541358,20.30569984,143.94,143.9,41.07474029]
[1746554541558,82.8,143.95,143.9,58.4479161]
[1746554541742,20.30569984,143.94,143.9,58.4479161]
[1746554543058,82.8,143.95,143.9,58.4479161]
[1746554543264,103.10569984,143.95,143.92,6.94830461]
[1746554544169,82.8,143.95,143.92,27.25400445]
[1746554544375,82.8,143.95,143.92,44.62476598]
[1746554544551,82.8,143.95,143.93,20.30569984]
[1746554544755,46.30569984,143.97,143.93,20.30569984]
[1746554544972,103.10569984,143.98,143.93,20.30569984]
[1746554545272,20.30569984,143.99,143.95,6.94685654]
[1746554545574,20.30569984,143.98,143.95,20.76685654]
[1746554545867,20.30569984,143.97,143.95,20.76685654]
[1746554546371,20.30569984,143.96,143.95,13.82]
[1746554548770,20.30569984,143.97,143.95,13.82]
[1746554548963,20.30569984,143.97,143.95,20.7668191]
[1746554549278,20.30569984,143.98,143.95,20.7668191]
[1746554549862,20.30569984,143.99,143.95,41.07251894]
[1746554550671,82.8,144.01,143.95,41.07251894]
[1746554550889,20.30569984,143.99,143.95,41.07251894]
[1746554551187,82.8,144.01,143.95,41.07251894]
[1746554551348,20.30569984,144.0,143.96,20.30569984]
[1746554553169,20.30569984,144.0,143.97,6.9458915]
[1746554553668,26.0,144.02,143.97,27.25159134]
[1746554553965,82.8,144.05,144.01,20.30569984]
[1746554554159,103.10569984,144.05,144.01,34.10569984]
[1746554554363,20.30569984,144.03,144.01,13.8]
[1746554554577,20.30569984,144.02,144.01,13.8]
[1746554556749,20.30569984,144.02,143.97,34.10569984]
[1746554556750,27.24921867,144.02,143.97,34.54568036]
[1746554556957,20.30569984,144.0,143.97,20.74568036]
[1746554557572,89.74319357,144.03,143.97,41.0513802]
[1746554557877,20.30569984,144.01,143.97,41.0513802]
[1746554558674,20.30569984,144.02,143.97,41.0513802]
[1746554558978,82.8,144.07,144.01,20.30569984]
[1746554559178,103.10569984,144.07,144.03,20.30569984]
[1746554559567,20.30569984,144.06,144.02,34.10569984]
[1746554559874,103.10569984,144.07,144.02,34.10569984]
[1746554560374,82.8,144.07,144.03,20.30569984]
[1746554560586,82.8,144.07,144.04,20.30569984]
[1746554560787,82.8,144.07,144.04,6.94251596]
[1746554560955,20.30569984,144.08,144.04,27.2482158]
[1746554561369,108.8,144.1,144.05,20.30569984]
[1746554561671,129.10569984,144.1,144.05,20.30569984]
[1746554561983,108.8,144.1,144.05,32.43399029]
[1746554562281,32.43399029,144.09,144.05,32.43399029]
[1746554562858,108.8,144.1,144.06,6.94155213]
[1746554563058,32.43399029,144.09,144.06,6.94155213]
[1746554564355,58.43399029,144.1,144.06,6.94155213]
[1746554564558,58.43399029,144.1,144.06,39.37554242]
[1746554564769,1.6322,144.11,144.08,6.94058856]
[1746554564975,32.43399029,144.11,144.08,6.94058856]
[1746554565182,108.8,144.12,144.08,6.94058856]
[1746554565368,32.43399029,144.11,144.08,6.94058856]
[1746554567669,108.8,144.12,144.08,39.37457885]
[1746554567670,26.0,144.12,144.08,39.37457885]
[1746554567994,82.8,144.19,144.09,26.14216157]
[1746554568294,150.71710088,144.2,144.15,32.43399029]
[1746554568295,32.43399029,144.2,144.15,32.43399029]
[1746554568466,1.5959,144.22,144.16,13.82]
[1746554568658,32.43399029,144.2,144.16,46.25399029]
[1746554569291,32.43399029,144.2,144.16,13.82]
[1746554569991,8.52993099,144.22,144.16,46.25399029]
[1746554570192,18.64964886,144.21,144.16,13.82]
[1746554570498,32.43399029,144.18,144.16,13.82]
[1746554570783,32.43399029,144.17,144.16,13.82]
[1746554571165,32.43399029,144.17,144.11,39.37308768]
[1746554571366,32.43399029,144.15,144.12,46.25399029]
[1746554571664,32.43399029,144.16,144.12,46.25399029]
[1746554571861,32.43399029,144.17,144.13,32.43399029]
[1746554573392,32.43399029,144.16,144.12,46.25399029]
[1746554573556,32.43399029,144.15,144.12,13.82]
[1746554573758,39.37223799,144.13,144.1,13.82]
[1746554574065,32.43399029,144.11,144.1,13.82]
[1746554575880,82.8,144.14,144.1,13.82]
[1746554576077,32.43399029,144.12,144.1,13.82]
[1746554576690,32.43399029,144.12,144.1,20.75941423]
[1746554577087,32.43399029,144.13,144.1,20.75941423]
[1746554577972,32.43399029,144.12,144.1,20.75941423]
[1746554578186,32.43399029,144.12,144.1,20.75953718]
[1746554578489,32.43399029,144.13,144.1,20.75953718]
[1746554578686,32.43399029,144.12,144.1,13.82]
[1746554579470,32.43399029,144.11,144.1,13.82]
[1746554580371,32.43399029,144.11,144.08,6.94042224]
[1746554581492,82.8,144.12,144.08,39.37441253]
[1746554581691,115.23399029,144.12,144.08,39.37441253]
[1746554581894,32.43399029,144.11,144.08,6.94042224]
[1746554582994,82.8,144.12,144.08,39.37441253]
[1746554583188,115.23399029,144.12,144.08,39.37441253]
[1746554583794,32.43399029,144.11,144.08,6.94042224]
[1746554584168,115.23399029,144.12,144.08,39.37441253]
[1746554584369,82.8,144.12,144.09,32.43399029]
[1746554584677,82.8,144.12,144.1,32.43399029]
[1746554584678,82.73774944,144.12,144.1,32.43399029]
[1746554584993,82.73774944,144.12,144.11,32.43399029]
[1746554585508,82.73774944,144.12,144.1,32.43399029]
[1746554586089,82.73774944,144.12,144.11,6.9391437]
[1746554587499,82.73774944,144.12,144.1,6.93941172]
[1746554588802,82.73774944,144.12,144.1,39.37340201]
[1746554589011,82.73774944,144.12,144.1,6.93941172]
[1746554589595,32.43399029,144.13,144.1,6.93941172]
[1746554591206,32.43399029,144.14,144.1,6.93941172]
[1746554591380,32.43399029,144.13,144.1,6.93941172]
[1746554591581,32.43399029,144.13,144.09,6.93988871]
[1746554592600,32.43399029,144.11,144.09,6.93988871]
[1746554594205,32.43399029,144.11,144.08,6.94036466]
[1746554595710,32.43399029,144.09,144.07,20.72094717]
[1746554595916,32.43399029,144.09,144.06,6.94132201]
[1746554596220,32.43399029,144.08,144.06,6.94132201]
[1746554596385,32.43399029,144.08,144.05,13.78]
[1746554596386,32.43399029,144.07,144.05,13.78]
[1746554596586,6.93962526,144.1,144.05,20.72201435]
[1746554596826,32.43399029,144.07,144.04,6.94231651]
[1746554598298,32.43399029,144.08,144.04,39.3763068]
[1746554598807,115.17173973,144.09,144.05,32.43399029]
[1746554599018,82.73774944,144.09,144.06,32.43399029]
[1746554599323,82.73774944,144.09,144.08,32.43399029]
[1746554599522,115.17173973,144.13,144.08,46.25399029]
[1746554599704,82.73774944,144.13,144.1,32.43399029]
[1746554601209,82.73774944,144.13,144.09,6.94010687]
[1746554601210,82.73774944,144.13,144.09,39.37409716]
[1746554602311,82.73774944,144.13,144.1,32.43399029]
[1746554603814,82.73774944,144.13,144.11,6.9391437]
[1746554604027,32.43399029,144.14,144.11,6.9391437]
[1746554604321,115.17173973,144.15,144.11,6.9391437]
[1746554604519,82.73774944,144.15,144.12,32.43399029]
[1746554604815,32.43399029,144.16,144.12,32.43399029]
[1746554605903,82.73774944,144.17,144.14,32.43399029]
[1746554607021,82.73774944,144.17,144.15,32.43399029]
[1746554607222,115.17173973,144.19,144.15,32.43399029]
[1746554608126,115.17173973,144.19,144.16,6.93673695]
[1746554608331,115.17173973,144.19,144.15,39.37107414]
[1746554609102,82.73774944,144.19,144.15,39.37107414]
[1746554609311,115.17173973,144.19,144.15,39.37107414]
[1746554609830,82.73774944,144.19,144.15,39.37107414]
[1746554610002,115.17173973,144.19,144.15,39.37107414]
[1746554611034,115.17173973,144.19,144.15,6.93708385]
[1746554611533,32.43399029,144.18,144.15,6.93708385]
[1746554612311,82.73774944,144.19,144.15,6.93708385]
[1746554612610,32.43399029,144.18,144.15,6.93708385]
[1746554617511,115.17173973,144.19,144.15,6.93708385]
[1746554617949,20.24712435,144.17,144.14,6.93747797]
[1746554618107,20.24712435,144.16,144.14,6.93747797]
[1746554618330,20.24712435,144.17,144.14,6.93747797]
[1746554619357,20.24712435,144.16,144.13,20.71800761]
[1746554619537,20.24712435,144.15,144.1,6.93962526]
[1746554619740,82.73774944,144.17,144.11,13.78]
[1746554619741,20.24712435,144.14,144.11,13.78]
[1746554620350,20.24712435,144.14,144.11,20.71879234]
[1746554621763,32.41253865,144.14,144.11,20.71879234]
[1746554622953,32.41253865,144.14,144.1,39.35193807]
[1746554623134,32.41253865,144.13,144.1,6.93939942]
[1746554624549,32.41253865,144.11,144.04,19.9407]
[1746554624848,89.67675763,144.12,144.05,20.72203401]
[1746554625025,32.41253865,144.09,144.05,70.48965769]
[1746554625229,32.41253865,144.1,144.06,32.41253865]
[1746554626328,32.41253865,144.1,144.05,38.07711904]
[1746554626329,32.41253865,144.09,144.05,70.48965769]
[1746554626557,32.41253865,144.1,144.07,6.94107031]
[1746554628355,32.41253865,144.09,144.07,6.94107031]
[1746554629485,32.41253865,144.1,144.07,6.94107031]
[1746554631057,32.41253865,144.09,144.07,6.94107031]
[1746554631650,32.41253865,144.1,144.07,6.94107031]
[1746554633163,89.67661632,144.12,144.07,6.94107031]
[1746554633363,32.41253865,144.1,144.07,6.94107031]
[1746554637254,32.41253865,144.09,144.07,6.94107031]
[1746554639975,32.41253865,144.08,144.04,13.78]
[1746554640155,32.41253865,144.08,144.04,27.56]
[1746554640469,32.41253865,144.08,144.05,6.94191833]
[1746554641875,20.27558756,144.08,144.05,6.94191833]
[1746554642570,20.27558756,144.08,144.03,17.35718634]
[1746554642571,20.27558756,144.06,144.02,20.27558756]
[1746554642757,20.27558756,144.05,144.03,13.78]
[1746554642957,20.27558756,144.06,144.03,13.78]
[1746554643273,20.27558756,144.04,143.98,11.44070558]
[1746554643473,18.64964886,144.04,143.96,20.72637399]
[1746554643652,18.64964886,144.04,143.96,41.00196155]
[1746554643849,20.27558756,143.98,143.96,20.72637399]
[1746554644088,20.27558756,143.99,143.96,20.72637399]
[1746554644456,82.73774944,144.03,143.98,20.27558756]
[1746554644662,20.27558756,144.02,143.98,20.27558756]
[1746554644865,20.27558756,144.03,143.99,20.27558756]
[1746554645058,20.27558756,144.01,143.97,0.14216157]
[1746554645278,20.27558756,144.0,143.96,58.36789653]
[1746554645480,20.27558756,143.99,143.97,13.8]
[1746554645669,20.27558756,143.98,143.97,13.8]
[1746554645876,20.27558756,143.99,143.97,20.74588375]
[1746554646969,25.59325002,144.02,143.97,20.74588375]
[1746554647258,20.27558756,143.99,143.97,20.74588375]
[1746554648889,20.27558756,143.99,143.97,13.8]
[1746554649489,20.27558756,143.99,143.97,20.74585356]
[1746554649972,20.27558756,143.99,143.97,13.8]
[1746554650270,20.27558756,143.99,143.97,20.74577621]
[1746554650461,20.27558756,143.99,143.97,13.8]
[1746554652662,20.27558756,143.98,143.95,13.8]
[1746554652886,20.27558756,143.99,143.95,13.8]
[1746554653069,20.27558756,143.99,143.95,34.07558756]
[1746554654475,20.27558756,143.99,143.96,6.94637399]
[1746554654958,82.73774944,144.0,143.97,20.27558756]
[1746554656597,26.0,144.02,143.98,27.22099664]
[1746554656799,82.73774944,144.03,144.0,20.27558756]
[1746554657092,20.27558756,144.04,144.01,13.8]
[1746554658376,21.80568756,144.05,144.01,34.07558756]
[1746554658583,82.73774944,144.06,144.02,6.94348007]
[1746554658788,82.73774944,144.06,144.03,20.27558756]
[1746554659804,103.013337,144.06,144.02,27.21906763]
[1746554659986,82.73774944,144.06,144.03,20.27558756]
[1746554660809,82.73774944,144.06,144.04,6.94251596]
[1746554662891,20.27558756,144.08,144.04,27.21810352]
[1746554663106,20.27558756,144.08,144.04,26.71810352]
[1746554663577,108.73774944,144.09,144.04,26.71810352]
[1746554663902,108.73774944,144.09,144.05,20.27558756]
[1746554663903,129.013337,144.09,144.05,20.27558756]
[1746554664776,129.013337,144.09,144.06,6.94155213]
[1746554664973,20.27558756,144.09,144.06,20.74155213]
[1746554665199,82.73774944,144.11,144.08,20.27558756]
[1746554665383,82.73774944,144.13,144.1,20.27558756]
[1746554665599,129.013337,144.15,144.11,20.27558756]
[1746554665902,115.67503258,144.15,144.1,20.27558756]
[1746554666083,20.27558756,144.13,144.09,20.27558756]
[1746554666293,20.27558756,144.11,144.06,38.09543245]
[1746554666602,20.27558756,144.08,144.06,6.94155213]
[1746554667404,20.27558756,144.09,144.06,6.94155213]
[1746554667787,82.73774944,144.1,144.06,27.21713969]
[1746554667989,103.013337,144.1,144.06,27.21713969]
[1746554668378,82.73774944,144.1,144.07,20.27558756]
[1746554668580,82.73774944,144.1,144.09,20.27558756]
[1746554668779,103.013337,144.14,144.09,20.27558756]
[1746554668992,103.013337,144.14,144.11,6.9391437]
[1746554669190,82.73774944,144.14,144.11,27.21473126]
[1746554669700,20.27558756,144.13,144.11,6.9391437]
[1746554671606,20.27558756,144.13,144.1,20.79944723]
[1746554671779,20.27558756,144.11,144.1,13.86]
[1746554672185,20.27558756,144.12,144.1,13.86]
[1746554672691,20.27558756,144.12,144.1,20.79958016]
[1746554673212,20.27558756,144.12,144.1,13.86]
[1746554673395,20.27558756,144.12,144.1,20.79962175]
[1746554673702,20.27558756,144.12,144.1,13.86]
[1746554673919,20.27558756,144.11,144.1,13.86]
[1746554674211,20.27558756,144.11,144.08,6.94053545]
[1746554674556,20.27558756,144.09,144.06,6.9412484]
[1746554674693,20.27558756,144.08,144.06,6.9412484]
[1746554674887,103.013337,144.11,144.06,27.21683596]
[1746554675212,103.013337,144.11,144.07,20.27558756]
[1746554675897,82.73774944,144.11,144.09,6.94010687]
[1746554676095,20.27558756,144.12,144.09,6.94010687]
[1746554676793,20.27558756,144.11,144.08,6.9403792]
[1746554677514,20.27558756,144.09,144.06,20.78134683]
[1746554678396,20.27558756,144.08,144.06,20.78134683]
[1746554679023,20.27558756,144.09,144.06,20.78134683]
[1746554679406,82.73774944,144.11,144.08,20.27558756]
[1746554680123,82.73774944,144.11,144.09,6.94010687]
[1746554680421,20.27558756,144.12,144.09,6.94010687]
[1746554680721,103.013337,144.13,144.09,6.94010687]
[1746554681918,115.15977407,144.13,144.09,6.94010687]
[1746554682100,115.15977407,144.13,144.09,32.42202463]
[1746554682821,82.73774944,144.13,144.09,32.42202463]
[1746554683007,115.15977407,144.13,144.09,32.42202463]
[1746554684102,115.15977407,144.13,144.1,6.93962526]
[1746554684800,115.15977407,144.13,144.09,6.93988698]
[1746554685191,32.42202463,144.12,144.09,6.93988698]
[1746554686423,115.15977407,144.13,144.09,39.36191161]
[1746554686797,82.73774944,144.13,144.09,39.36191161]
[1746554687014,82.73774944,144.13,144.11,32.42202463]
[1746554687321,82.73774944,144.13,144.11,46.24202463]
[1746554687618,82.73774944,144.13,144.11,45.74202463]
[1746554688596,82.73774944,144.13,144.12,6.93866222]
[1746554688799,58.42202463,144.15,144.12,6.93866222]
[1746554688800,32.42202463,144.15,144.12,6.93866222]
[1746554689023,108.73774944,144.16,144.12,6.93866222]
[1746554689325,32.42202463,144.15,144.12,6.93866222]
[1746554692721,32.42202463,144.14,144.12,6.93866222]
[1746554692926,141.15977407,144.16,144.12,39.36068685]
[1746554693122,82.73774944,144.18,144.13,32.42202463]
[1746554693428,32.42202463,144.17,144.13,32.42202463]
[1746554694726,32.42202463,144.17,144.14,6.93769945]
[1746554695429,32.42202463,144.16,144.14,6.93769945]
[1746554695614,32.42202463,144.17,144.14,6.93769945]
[1746554696231,89.67358286,144.18,144.14,6.93769945]
[1746554696531,32.42202463,144.17,144.14,6.93769945]
[1746554699728,89.67355961,144.18,144.14,6.93769945]
[1746554699912,32.42202463,144.17,144.13,39.35998897]
[1746554700305,89.67355961,144.18,123.9,238.0952381]
[1746554700306,32.42202463,144.14,144.08,39.06504663]
[1746554700509,101.3873983,144.16,144.09,6.94010687]
[1746554700510,32.42202463,144.12,144.09,6.94010687]
[1746554700712,32.42202463,144.13,144.09,39.3621315]
[1746554700932,32.42202463,144.14,144.1,32.42202463]
[1746554701230,32.42202463,144.13,144.09,39.3621315]
[1746554701436,32.42202463,144.13,144.09,6.94010687]
[1746554701607,32.42202463,144.13,144.09,39.3621315]
[1746554702219,20.26159203,144.13,144.09,27.2016989]
[1746554702421,20.26159203,144.13,144.09,6.94010687]
[1746554702621,20.26159203,144.12,144.09,6.94010687]
[1746554703127,20.26159203,144.13,144.09,6.94010687]
[1746554704557,20.26159203,144.13,144.09,27.2016989]
[1746554704836,20.26159203,144.14,144.09,27.2016989]
[1746554705533,20.26159203,144.13,144.09,27.2016989]
[1746554705733,1.6366,144.15,144.09,27.2016989]
[1746554705734,8.57388433,144.15,144.09,27.2016989]
[1746554705925,20.26159203,144.13,144.09,27.2016989]
[1746554708048,20.26159203,144.13,144.09,20.26159203]
[1746554708336,1.6366,144.15,144.08,6.94021926]
[1746554708337,20.26159203,144.11,144.08,6.94021926]
[1746554708523,20.26159203,144.1,144.08,6.94021926]
[1746554709111,20.26159203,144.09,144.06,20.74131543]
[1746554709524,20.26159203,144.1,144.06,20.74131543]
[1746554710136,20.26159203,144.1,144.06,41.00290746]
[1746554710440,20.26159203,144.08,144.05,6.94181358]
[1746554710639,20.26159203,144.06,144.04,20.76234089]
[1746554710821,20.26159203,144.06,144.04,6.94234089]
[1746554711021,1.5293,144.09,144.04,6.94234089]
[1746554711221,20.26159203,144.06,144.04,6.94234089]
[1746554711833,20.26159203,144.06,144.03,6.94286011]
[1746554712112,20.26159203,144.05,144.02,6.94324934]
[1746554712335,20.26159203,144.04,144.01,20.78395581]
[1746554712724,20.26159203,144.03,144.01,13.84]
[1746554712924,20.26159203,144.04,144.01,13.84]
[1746554713220,20.26159203,144.03,143.99,27.20634306]
[1746554713420,20.26159203,144.03,143.99,41.04634306]
[1746554714357,6.94211504,144.05,143.99,41.04634306]
[1746554714517,20.26159203,144.03,143.99,41.04634306]
[1746554716321,102.99934147,144.05,144.01,20.26159203]
[1746554717249,82.73774944,144.05,144.01,20.26159203]
[1746554718349,82.73774944,144.05,144.02,6.94348007]
[1746554718532,82.73774944,144.05,144.02,27.2050721]
[1746554718734,82.73774944,144.05,144.03,20.26159203]
[1746554718931,82.73774944,144.05,144.04,13.86]
[1746554719145,26.0,144.07,144.04,34.12159203]
[1746554719354,46.26159203,144.07,144.04,13.86]
[1746554720045,20.26159203,144.06,144.04,13.86]
[1746554720249,20.26159203,144.06,144.04,20.80243288]
[1746554720568,46.26159203,144.07,144.04,20.80243288]
[1746554720744,46.26159203,144.07,144.04,13.86]
[1746554721050,20.26159203,144.06,144.04,13.86]
[1746554721758,20.26159203,144.05,144.0,20.82403775]
[1746554722047,20.26159203,144.04,144.0,41.08562978]
[1746554722223,20.26159203,144.03,144.0,20.82403775]
[1746554722832,20.26159203,144.03,144.0,6.94403775]
[1746554723126,20.26159203,144.02,143.99,6.9448082]
[1746554723341,20.26159203,144.02,143.99,20.8248082]
[1746554723955,20.26159203,144.02,143.98,41.08659924]
[1746554725967,27.20515807,144.02,143.98,6.94500721]
[1746554726167,20.26159203,144.0,143.96,13.84]
[1746554726347,20.26159203,144.0,143.96,27.72]
[1746554726750,20.26159203,144.0,143.96,54.92793599]
[1746554726945,20.26159203,144.0,143.96,41.08793599]
[1746554727652,102.99934147,144.01,143.97,20.26159203]
[1746554728457,82.73774944,144.01,143.98,20.26159203]
[1746554729357,102.99934147,144.01,143.98,6.94520802]
[1746554729963,82.73774944,144.01,143.98,27.20680005]
[1746554730561,20.26159203,144.02,143.98,27.20680005]
[1746554733864,20.26159203,144.01,143.97,27.20727466]
[1746554734176,20.26159203,144.0,143.97,6.94568263]
[1746554734364,20.26159203,144.01,143.97,6.94568263]
[1746554734875,20.26159203,144.02,143.98,20.26159203]
[1746554735055,104.65694147,144.03,143.98,20.26159203]
[1746554735769,104.65694147,144.03,143.99,6.94492673]
[1746554735966,84.39534944,144.03,143.99,27.20651876]
[1746554736149,82.73774944,144.03,143.99,27.20651876]
[1746554736848,102.99934147,144.03,143.99,6.94492673]
[1746554737049,102.99934147,144.03,143.99,27.20651876]
[1746554740258,82.73774944,144.03,144.0,20.26159203]
[1746554740489,82.73774944,144.03,144.02,20.26159203]
[1746554740656,128.99934147,144.06,144.02,20.26159203]
[1746554741555,20.26159203,144.05,144.01,34.12159203]
[1746554742479,20.26159203,144.04,144.01,20.80384111]
[1746554742656,20.26159203,144.04,144.01,13.86]
[1746554742862,20.26159203,144.03,144.01,13.86]
[1746554744874,102.99934147,144.04,144.01,20.80387581]
[1746554745386,102.99934147,144.04,144.01,13.86]
[1746554745775,109.94188045,144.04,144.01,13.86]
[1746554745976,102.99934147,144.04,144.01,13.86]
[1746554746377,102.99934147,144.04,144.01,20.80386498]
[1746554747481,102.99934147,144.04,144.01,13.86]
[1746554749488,82.73774944,144.04,144.01,13.86]
[1746554749693,102.99934147,144.04,144.01,20.80384456]
[1746554751988,102.99934147,144.04,144.01,13.86]
[1746554752377,102.99934147,144.04,144.01,20.80394102]
[1746554754073,82.73774944,144.04,144.02,20.26159203]
[1746554754291,26.0,144.06,144.03,20.26159203]
[1746554754497,96.57774944,144.07,144.03,20.26159203]
[1746554754797,82.73774944,144.07,144.04,20.26159203]
[1746554755003,82.73774944,144.07,144.05,20.26159203]
[1746554756294,82.73774944,144.07,144.05,27.20353385]
[1746554756597,82.73774944,144.07,144.04,27.20393295]
[1746554760514,20.26159203,144.08,144.01,13.86]
[1746554760677,20.26159203,144.05,144.02,6.94348007]
[1746554761022,20.26159203,144.04,144.01,6.94375863]
[1746554761176,20.26159203,144.05,144.01,27.20535066]
[1746554761378,20.26159203,144.06,144.02,20.26159203]
[1746554761804,20.26159203,144.05,144.01,27.20535066]
[1746554762420,20.26159203,144.05,144.01,20.26159203]
[1746554762709,20.26159203,144.02,143.97,6.94565405]
[1746554762879,20.26159203,143.99,143.96,20.76628383]
[1746554763084,20.26159203,143.98,143.96,6.94628383]
[1746554763386,20.26159203,143.99,143.96,6.94628383]
[1746554764502,102.99934147,144.0,143.96,27.20787586]
[1746554764690,82.73774944,144.0,143.96,27.20787586]
[1746554764884,102.99934147,144.0,143.96,27.20787586]
[1746554766207,20.26159203,143.99,143.96,6.94628383]
[1746554766586,20.26159203,143.98,143.95,6.94666592]
[1746554767103,20.26159203,143.96,143.92,47.88159203]
[1746554767281,102.99934147,143.98,143.94,20.26159203]
[1746554767487,82.73774944,143.98,143.95,20.26159203]
[1746554767688,102.99934147,143.98,143.94,20.26159203]
[1746554767995,102.99934147,143.98,143.95,6.94685654]
[1746554769619,102.99934147,143.98,143.94,27.20875137]
[1746554770515,82.73774944,143.98,143.94,27.20875137]
[1746554770689,102.99934147,143.98,143.94,27.20875137]
[1746554771600,20.26159203,143.96,143.87,36.26787375]
[1746554771787,102.99934147,143.95,143.91,20.26159203]
[1746554772209,82.73774944,143.95,143.91,20.26159203]
[1746554773014,82.73774944,143.95,143.92,20.26159203]
[1746554773411,20.26159203,143.93,143.9,6.94927032]
[1746554773706,82.73774944,143.95,143.9,6.94927032]
[1746554773707,20.26159203,143.94,143.9,27.21086235]
[1746554773905,102.99934147,143.94,143.9,27.21086235]
[1746554774089,82.73774944,143.94,143.91,20.26159203]
[1746554775116,82.73774944,143.94,143.91,27.21011873]
[1746554777013,102.99934147,143.94,143.91,6.9485267]
[1746554777696,102.99934147,143.94,143.9,6.94915776]
[1746554779016,20.26159203,143.93,143.89,6.94960239]
[1746554779322,20.26159203,143.93,143.89,27.21119442]
[1746554779639,102.99934147,143.94,143.9,20.26159203]
[1746554779820,82.73774944,143.94,143.91,20.26159203]
[1746554781222,82.73774944,143.94,143.92,6.94830461]
[1746554785108,20.26159203,143.89,143.86,6.95120255]
[1746554786032,89.68636651,143.92,143.86,6.95120255]
[1746554786033,20.26159203,143.9,143.86,6.95120255]
[1746554786524,20.26159203,143.9,143.86,27.21279458]
[1746554786729,20.26159203,143.89,143.85,20.75150466]
[1746554786932,20.26159203,143.89,143.85,41.01309669]
[1746554787233,20.26159203,143.88,143.85,41.01309669]
[1746554788501,20.26159203,143.89,143.85,41.01309669]
[1746554789638,20.26159203,143.9,143.86,20.26159203]
[1746554789824,20.26159203,143.91,143.87,20.26159203]
[1746554790327,20.26159203,143.91,143.88,6.9502363]
[1746554792922,20.26159203,143.9,143.87,6.95049435]
[1746554794037,20.26159203,143.91,143.87,6.95049435]
[1746554794417,20.26159203,143.91,143.87,20.26159203]
[1746554794617,20.26159203,143.9,143.86,27.21279458]
[1746554795135,20.26159203,143.91,143.86,27.21279458]
[1746554795510,108.73774944,143.92,143.87,20.26159203]
[1746554795744,108.73774944,143.92,143.88,20.26159203]
[1746554796044,20.26159203,143.91,143.87,20.26159203]
[1746554796632,20.26159203,143.91,143.88,6.9502363]
[1746554796837,128.99934147,143.92,143.88,27.21182833]
[1746554797732,108.73774944,143.92,143.88,27.21182833]
[1746554798124,20.26159203,143.91,143.88,27.21182833]
[1746554798411,20.26159203,143.91,143.88,6.9502363]
[1746554800141,82.73774944,143.92,143.88,6.9502363]
[1746554800329,82.73774944,143.92,143.9,20.26159203]
[1746554800921,82.73774944,143.94,143.91,20.26159203]
[1746554802154,102.99934147,143.94,143.91,6.94878743]
[1746554802749,82.73774944,143.94,143.91,27.21037946]
[1746554802931,82.73774944,143.94,143.92,20.26159203]
[1746554803447,26.0,143.96,143.93,20.26159203]
[1746554803614,82.73774944,143.97,143.94,20.26159203]
[1746554804431,82.73774944,143.97,143.94,27.20874576]
[1746554804943,82.73774944,143.97,143.94,6.94715373]
[1746554805119,82.73774944,143.97,143.96,20.26159203]
[1746554805511,116.79934147,144.0,143.96,20.26159203]
[1746554806034,116.79934147,144.0,143.95,20.26159203]
[1746554806538,116.79934147,144.0,143.96,6.94637399]
[1746554807040,82.73774944,144.0,143.97,20.26159203]
[1746554807339,82.73774944,144.02,143.99,20.26159203]
[1746554807550,96.53774944,144.04,144.0,20.26159203]
[1746554807926,82.73774944,144.04,144.0,34.06159203]
[1746554808329,82.73774944,144.04,144.01,20.26159203]
[1746554808532,82.73774944,144.04,144.03,6.94299798]
[1746554808832,82.73774944,144.06,144.03,6.94299798]
[1746554809542,96.53774944,144.08,144.03,27.20459001]
[1746554809757,96.53774944,144.08,144.03,6.94299798]
[1746554810059,116.79934147,144.08,144.04,20.26159203]
[1746554810851,116.79934147,144.08,144.04,27.20405062]
[1746554811264,20.26159203,144.07,144.03,27.2044453]
[1746554812356,20.26159203,144.06,144.02,20.26159203]
[1746554812952,20.26159203,144.05,144.01,6.94396222]
[1746554813149,20.26159203,144.06,144.02,20.26159203]
[1746554813865,96.53774944,144.08,144.04,20.26159203]
[1746554814166,96.53774944,144.08,144.05,20.26159203]
[1746554814346,82.73774944,144.08,144.05,34.06159203]
[1746554814546,82.73774944,144.08,144.06,20.26159203]
[1746554814936,82.73774944,144.08,144.06,27.20272231]
[1746554815836,82.73774944,144.08,144.06,39.3765695]
[1746554816035,141.17318866,144.11,144.07,32.43543922]
[1746554816339,108.73774944,144.11,144.07,32.43543922]
[1746554816639,141.17318866,144.11,144.07,32.43543922]
[1746554817245,141.17318866,144.11,144.07,39.37618644]
[1746554817563,32.43543922,144.1,144.06,39.37682644]
[1746554818559,141.17318866,144.11,144.07,32.43543922]